Workbook

Sheet settings
A2: Bank | B2: 10000 | F2: Totals Coeff | G2: Intercept | H2: Exp
F3: 4 | G3: -1.050412404 | H3: 0.3640636083
A4: Kelly | F4: =F3+0.5 -> 4.5 | G4: -1.140479943 | H4: 0.3270393421
A5: h2h | B5: 10 | F5: =F4+0.5 -> 5 | G5: -1.526237099 | H5: 0.3556521159
A6: totals | B6: 10 | F6: 5.5 | G6: -1.564558581 | H6: 0.2994507431
F7: 6 | G7: -1.9555593 | H7: 0.3310623015
A8: Min.Overlay | F8: 6.5 | G8: -2.0554881 | H8: 0.3120406671
A9: Team1 | B9: 0.05 | F9: 7 | G9: -2.500200145 | H9: 0.3397430924
A10: Team2 | B10: 0.05 | F10: 7.5 | G10: -2.461790961 | H10: 0.3005213306
F11: 8 | G11: -2.892051671 | H11: 0.3306477458
A12: Over | B12: 0.05 | F12: 8.5 | G12: -2.89457653 | H12: 0.3120817167
A13: Under | B13: 0.05 | F13: 9 | G13: -3.568734305 | H13: 0.3609176231
F14: 9.5 | G14: -3.569145644 | H14: 0.3417650899
F15: 10 | G15: -4.064897213 | H15: 0.3744108952
F16: 10.5 | G16: -3.996943785 | H16: 0.3550462999
F17: 11 | G17: -4.653548178 | H17: 0.3968973368
F18: 11.5 | G18: -4.517302191 | H18: 0.3698529113
F19: 12 | G19: -4.800322231 | H19: 0.377119348
F20: 12.5 | G20: -4.645029126 | H20: 0.3528763639
F21: 13 | G21: -5.19772456 | H21: 0.3807781241
F22: 13.5 | G22: -5.163525849 | H22: 0.3705002051
F23: 14 | G23: -5.755302584 | H23: 0.4075284568

Sheet mlb
A3: Date | B3: Team1 | C3: Team2 | D3: Pitcher1 | E3: Pitcher2 | F3: Prob(Team1) | G3: ExpTot | H3: Odds1 | I3: Odds2 | J3: $Bet1 | K3: $Bet2 | L3: Prob(Over) | M3: Tot Line | N3: OddsOver | O3: OddsUnder | P3: $BetOver | Q3: $BetUnder
A4: 2014-05-25 | B4: Oakland | C4: Toronto | D4: Drew Pomeranz | E4: J.A. Happ | F4: 0.546 | G4: 9.7 | H4: 1.85 | I4: 2.09 | J4: =IF(OR(F4="",H4=""),"",IF((F4*H4-1)>=settings!$B$9,settings!$B$2/settings!$B$5*(F4*H4-1)/(mlb!H4-1),0)) -> 0 | K4: =IF(OR(F4="",I4=""),"",IF(((1-F4)*I4-1)>=settings!$B$10,settings!$B$2/settings!$B$5*((1-F4)*I4-1)/(I4-1),0)) -> 0 | L4: =IF(OR(G4="",M4=""),"",EXP(VLOOKUP(M4,settings!$F$3:$H$23,2)+VLOOKUP(M4,settings!$F$3:$H$23,3)*G4)/(1+EXP(VLOOKUP(M4,settings!$F$3:$H$23,2)+VLOOKUP(M4,settings!$F$3:$H$23,3)*G4))) -> 0.4368332378 | M4: 9.5 | N4: 1.99 | O4: 1.92 | P4: =IF(OR(M4="",L4="",N4="",G4=""),"",IF((L4*N4-1)>=settings!$B$12,settings!$B$2/settings!$B$6*(L4*N4-1)/(N4-1),0)) -> 0 | Q4: =IF(OR(M4="",L4="",O4="",G4=""),"",IF(((1-L4)*O4-1)>=settings!$B$13,settings!$B$2/settings!$B$6*((1-L4)*O4-1)/(O4-1),0)) -> 88.34802556
A5: 2014-05-25 | B5: Texas | C5: Detroit | D5: Colby Lewis | E5: Justin Verlander | F5: 0.426 | G5: 8 | H5: 2.56 | I5: 1.59 | J5: =IF(OR(F5="",H5=""),"",IF((F5*H5-1)>=settings!$B$9,settings!$B$2/settings!$B$5*(F5*H5-1)/(mlb!H5-1),0)) -> 58.05128205 | K5: =IF(OR(F5="",I5=""),"",IF(((1-F5)*I5-1)>=settings!$B$10,settings!$B$2/settings!$B$5*((1-F5)*I5-1)/(I5-1),0)) -> 0 | L5: =IF(OR(G5="",M5=""),"",EXP(VLOOKUP(M5,settings!$F$3:$H$23,2)+VLOOKUP(M5,settings!$F$3:$H$23,3)*G5)/(1+EXP(VLOOKUP(M5,settings!$F$3:$H$23,2)+VLOOKUP(M5,settings!$F$3:$H$23,3)*G5))) -> 0.4385941209 | M5: 8 | N5: 1.89 | O5: 1.98 | P5: =IF(OR(M5="",L5="",N5="",G5=""),"",IF((L5*N5-1)>=settings!$B$12,settings!$B$2/settings!$B$6*(L5*N5-1)/(N5-1),0)) -> 0 | Q5: =IF(OR(M5="",L5="",O5="",G5=""),"",IF(((1-L5)*O5-1)>=settings!$B$13,settings!$B$2/settings!$B$6*((1-L5)*O5-1)/(O5-1),0)) -> 113.8608577
A6: 2014-05-25 | B6: Arizona | C6: NY Mets | D6: Bronson Arroyo | E6: Rafael Montero | F6: 0.464 | G6: 7.8 | H6: 1.94 | I6: 1.98 | J6: =IF(OR(F6="",H6=""),"",IF((F6*H6-1)>=settings!$B$9,settings!$B$2/settings!$B$5*(F6*H6-1)/(mlb!H6-1),0)) -> 0 | K6: =IF(OR(F6="",I6=""),"",IF(((1-F6)*I6-1)>=settings!$B$10,settings!$B$2/settings!$B$5*((1-F6)*I6-1)/(I6-1),0)) -> 62.53061224 | L6: =IF(OR(G6="",M6=""),"",EXP(VLOOKUP(M6,settings!$F$3:$H$23,2)+VLOOKUP(M6,settings!$F$3:$H$23,3)*G6)/(1+EXP(VLOOKUP(M6,settings!$F$3:$H$23,2)+VLOOKUP(M6,settings!$F$3:$H$23,3)*G6))) -> 0.5373791247 | M6: 7 | N6: 1.89 | O6: 1.97 | P6: =IF(OR(M6="",L6="",N6="",G6=""),"",IF((L6*N6-1)>=settings!$B$12,settings!$B$2/settings!$B$6*(L6*N6-1)/(N6-1),0)) -> 0 | Q6: =IF(OR(M6="",L6="",O6="",G6=""),"",IF(((1-L6)*O6-1)>=settings!$B$13,settings!$B$2/settings!$B$6*((1-L6)*O6-1)/(O6-1),0)) -> 0
A7: 2014-05-25 | B7: Milwaukee | C7: Miami | D7: Jimmy Nelson | E7: Randy Wolf | F7: 0.476 | G7: 8 | H7: 1.88 | I7: 2.04 | J7: =IF(OR(F7="",H7=""),"",IF((F7*H7-1)>=settings!$B$9,settings!$B$2/settings!$B$5*(F7*H7-1)/(mlb!H7-1),0)) -> 0 | K7: =IF(OR(F7="",I7=""),"",IF(((1-F7)*I7-1)>=settings!$B$10,settings!$B$2/settings!$B$5*((1-F7)*I7-1)/(I7-1),0)) -> 66.30769231 | L7: =IF(OR(G7="",M7=""),"",EXP(VLOOKUP(M7,settings!$F$3:$H$23,2)+VLOOKUP(M7,settings!$F$3:$H$23,3)*G7)/(1+EXP(VLOOKUP(M7,settings!$F$3:$H$23,2)+VLOOKUP(M7,settings!$F$3:$H$23,3)*G7))) -> 0.4018115127 | M7: 8.5 | N7: 1.93 | O7: 1.94 | P7: =IF(OR(M7="",L7="",N7="",G7=""),"",IF((L7*N7-1)>=settings!$B$12,settings!$B$2/settings!$B$6*(L7*N7-1)/(N7-1),0)) -> 0 | Q7: =IF(OR(M7="",L7="",O7="",G7=""),"",IF(((1-L7)*O7-1)>=settings!$B$13,settings!$B$2/settings!$B$6*((1-L7)*O7-1)/(O7-1),0)) -> 170.7294313
A8: 2014-05-25 | B8: Cleveland | C8: Baltimore | D8: Trevor Bauer | E8: Miguel Gonzalez | F8: 0.467 | G8: 8.8 | H8: 2.07 | I8: 1.86 | J8: =IF(OR(F8="",H8=""),"",IF((F8*H8-1)>=settings!$B$9,settings!$B$2/settings!$B$5*(F8*H8-1)/(mlb!H8-1),0)) -> 0 | K8: =IF(OR(F8="",I8=""),"",IF(((1-F8)*I8-1)>=settings!$B$10,settings!$B$2/settings!$B$5*((1-F8)*I8-1)/(I8-1),0)) -> 0 | L8: =IF(OR(G8="",M8=""),"",EXP(VLOOKUP(M8,settings!$F$3:$H$23,2)+VLOOKUP(M8,settings!$F$3:$H$23,3)*G8)/(1+EXP(VLOOKUP(M8,settings!$F$3:$H$23,2)+VLOOKUP(M8,settings!$F$3:$H$23,3)*G8))) -> 0.4030773114 | M8: 9 | N8: 1.95 | O8: 1.95 | P8: =IF(OR(M8="",L8="",N8="",G8=""),"",IF((L8*N8-1)>=settings!$B$12,settings!$B$2/settings!$B$6*(L8*N8-1)/(N8-1),0)) -> 0 | Q8: =IF(OR(M8="",L8="",O8="",G8=""),"",IF(((1-L8)*O8-1)>=settings!$B$13,settings!$B$2/settings!$B$6*((1-L8)*O8-1)/(O8-1),0)) -> 172.6307818
A9: 2014-05-25 | B9: LA Dodgers | C9: Philadelphia | D9: Josh Beckett | E9: A.J. Burnett | F9: 0.547 | G9: 9.1 | H9: 1.88 | I9: 2.05 | J9: =IF(OR(F9="",H9=""),"",IF((F9*H9-1)>=settings!$B$9,settings!$B$2/settings!$B$5*(F9*H9-1)/(mlb!H9-1),0)) -> 0 | K9: =IF(OR(F9="",I9=""),"",IF(((1-F9)*I9-1)>=settings!$B$10,settings!$B$2/settings!$B$5*((1-F9)*I9-1)/(I9-1),0)) -> 0 | L9: =IF(OR(G9="",M9=""),"",EXP(VLOOKUP(M9,settings!$F$3:$H$23,2)+VLOOKUP(M9,settings!$F$3:$H$23,3)*G9)/(1+EXP(VLOOKUP(M9,settings!$F$3:$H$23,2)+VLOOKUP(M9,settings!$F$3:$H$23,3)*G9))) -> 0.5291775167 | M9: 8 | N9: 1.96 | O9: 1.94 | P9: =IF(OR(M9="",L9="",N9="",G9=""),"",IF((L9*N9-1)>=settings!$B$12,settings!$B$2/settings!$B$6*(L9*N9-1)/(N9-1),0)) -> 0 | Q9: =IF(OR(M9="",L9="",O9="",G9=""),"",IF(((1-L9)*O9-1)>=settings!$B$13,settings!$B$2/settings!$B$6*((1-L9)*O9-1)/(O9-1),0)) -> 0
A10: 2014-05-25 | B10: Washington | C10: Pittsburgh | D10: Doug Fister | E10: Francisco Liriano | F10: 0.456 | G10: 7.3 | H10: 2.07 | I10: 1.86 | J10: =IF(OR(F10="",H10=""),"",IF((F10*H10-1)>=settings!$B$9,settings!$B$2/settings!$B$5*(F10*H10-1)/(mlb!H10-1),0)) -> 0 | K10: =IF(OR(F10="",I10=""),"",IF(((1-F10)*I10-1)>=settings!$B$10,settings!$B$2/settings!$B$5*((1-F10)*I10-1)/(I10-1),0)) -> 0 | L10: =IF(OR(G10="",M10=""),"",EXP(VLOOKUP(M10,settings!$F$3:$H$23,2)+VLOOKUP(M10,settings!$F$3:$H$23,3)*G10)/(1+EXP(VLOOKUP(M10,settings!$F$3:$H$23,2)+VLOOKUP(M10,settings!$F$3:$H$23,3)*G10))) -> 0.4949812759 | M10: 7 | N10: 1.89 | O10: 2.02 | P10: =IF(OR(M10="",L10="",N10="",G10=""),"",IF((L10*N10-1)>=settings!$B$12,settings!$B$2/settings!$B$6*(L10*N10-1)/(N10-1),0)) -> 0 | Q10: =IF(OR(M10="",L10="",O10="",G10=""),"",IF(((1-L10)*O10-1)>=settings!$B$13,settings!$B$2/settings!$B$6*((1-L10)*O10-1)/(O10-1),0)) -> 0
A11: 2014-05-25 | B11: Boston | C11: Tampa Bay | D11: Brandon Workman | E11: Jake Odorizzi | F11: 0.495 | G11: 8 | H11: 2.08 | I11: 1.85 | J11: =IF(OR(F11="",H11=""),"",IF((F11*H11-1)>=settings!$B$9,settings!$B$2/settings!$B$5*(F11*H11-1)/(mlb!H11-1),0)) -> 0 | K11: =IF(OR(F11="",I11=""),"",IF(((1-F11)*I11-1)>=settings!$B$10,settings!$B$2/settings!$B$5*((1-F11)*I11-1)/(I11-1),0)) -> 0 | L11: =IF(OR(G11="",M11=""),"",EXP(VLOOKUP(M11,settings!$F$3:$H$23,2)+VLOOKUP(M11,settings!$F$3:$H$23,3)*G11)/(1+EXP(VLOOKUP(M11,settings!$F$3:$H$23,2)+VLOOKUP(M11,settings!$F$3:$H$23,3)*G11))) -> 0.4385941209 | M11: 8 | N11: 2.02 | O11: 1.88 | P11: =IF(OR(M11="",L11="",N11="",G11=""),"",IF((L11*N11-1)>=settings!$B$12,settings!$B$2/settings!$B$6*(L11*N11-1)/(N11-1),0)) -> 0 | Q11: =IF(OR(M11="",L11="",O11="",G11=""),"",IF(((1-L11)*O11-1)>=settings!$B$13,settings!$B$2/settings!$B$6*((1-L11)*O11-1)/(O11-1),0)) -> 63.00346893
A12: 2014-05-25 | B12: NY Yankees | C12: Chicago Sox | D12: Masahiro Tanaka | E12: Andre Rienzo | F12: 0.468 | G12: 9.1 | H12: 1.59 | I12: 2.56 | J12: =IF(OR(F12="",H12=""),"",IF((F12*H12-1)>=settings!$B$9,settings!$B$2/settings!$B$5*(F12*H12-1)/(mlb!H12-1),0)) -> 0 | K12: =IF(OR(F12="",I12=""),"",IF(((1-F12)*I12-1)>=settings!$B$10,settings!$B$2/settings!$B$5*((1-F12)*I12-1)/(I12-1),0)) -> 232 | L12: =IF(OR(G12="",M12=""),"",EXP(VLOOKUP(M12,settings!$F$3:$H$23,2)+VLOOKUP(M12,settings!$F$3:$H$23,3)*G12)/(1+EXP(VLOOKUP(M12,settings!$F$3:$H$23,2)+VLOOKUP(M12,settings!$F$3:$H$23,3)*G12))) -> 0.567817754 | M12: 7.5 | N12: 2.02 | O12: 1.88 | P12: =IF(OR(M12="",L12="",N12="",G12=""),"",IF((L12*N12-1)>=settings!$B$12,settings!$B$2/settings!$B$6*(L12*N12-1)/(N12-1),0)) -> 144.1096698 | Q12: =IF(OR(M12="",L12="",O12="",G12=""),"",IF(((1-L12)*O12-1)>=settings!$B$13,settings!$B$2/settings!$B$6*((1-L12)*O12-1)/(O12-1),0)) -> 0
A13: 2014-05-25 | B13: Kansas City | C13: LA Angels | D13: Jason Vargas | E13: Garrett Richards | F13: 0.458 | G13: 8.5 | H13: 2.5 | I13: 1.61 | J13: =IF(OR(F13="",H13=""),"",IF((F13*H13-1)>=settings!$B$9,settings!$B$2/settings!$B$5*(F13*H13-1)/(mlb!H13-1),0)) -> 96.66666667 | K13: =IF(OR(F13="",I13=""),"",IF(((1-F13)*I13-1)>=settings!$B$10,settings!$B$2/settings!$B$5*((1-F13)*I13-1)/(I13-1),0)) -> 0 | L13: =IF(OR(G13="",M13=""),"",EXP(VLOOKUP(M13,settings!$F$3:$H$23,2)+VLOOKUP(M13,settings!$F$3:$H$23,3)*G13)/(1+EXP(VLOOKUP(M13,settings!$F$3:$H$23,2)+VLOOKUP(M13,settings!$F$3:$H$23,3)*G13))) -> 0.4796248317 | M13: 8 | N13: 1.95 | O13: 1.95 | P13: =IF(OR(M13="",L13="",N13="",G13=""),"",IF((L13*N13-1)>=settings!$B$12,settings!$B$2/settings!$B$6*(L13*N13-1)/(N13-1),0)) -> 0 | Q13: =IF(OR(M13="",L13="",O13="",G13=""),"",IF(((1-L13)*O13-1)>=settings!$B$13,settings!$B$2/settings!$B$6*((1-L13)*O13-1)/(O13-1),0)) -> 0
A14: 2014-05-25 | B14: Minnesota | C14: San Francisco | D14: Ricky Nolasco | E14: Madison Bumgarner | F14: 0.437 | G14: 7.6 | H14: 2.46 | I14: 1.63 | J14: =IF(OR(F14="",H14=""),"",IF((F14*H14-1)>=settings!$B$9,settings!$B$2/settings!$B$5*(F14*H14-1)/(mlb!H14-1),0)) -> 51.38356164 | K14: =IF(OR(F14="",I14=""),"",IF(((1-F14)*I14-1)>=settings!$B$10,settings!$B$2/settings!$B$5*((1-F14)*I14-1)/(I14-1),0)) -> 0 | L14: =IF(OR(G14="",M14=""),"",EXP(VLOOKUP(M14,settings!$F$3:$H$23,2)+VLOOKUP(M14,settings!$F$3:$H$23,3)*G14)/(1+EXP(VLOOKUP(M14,settings!$F$3:$H$23,2)+VLOOKUP(M14,settings!$F$3:$H$23,3)*G14))) -> 0.4556595747 | M14: 7.5 | N14: 2.09 | O14: 1.83 | P14: =IF(OR(M14="",L14="",N14="",G14=""),"",IF((L14*N14-1)>=settings!$B$12,settings!$B$2/settings!$B$6*(L14*N14-1)/(N14-1),0)) -> 0 | Q14: =IF(OR(M14="",L14="",O14="",G14=""),"",IF(((1-L14)*O14-1)>=settings!$B$13,settings!$B$2/settings!$B$6*((1-L14)*O14-1)/(O14-1),0)) -> 0
A15: 2014-05-25 | B15: Chicago Cubs | C15: San Diego | D15: Jason Hammel | E15: Ian Kennedy | F15: 0.482 | G15: 6.9 | H15: 2.26 | I15: 1.73 | J15: =IF(OR(F15="",H15=""),"",IF((F15*H15-1)>=settings!$B$9,settings!$B$2/settings!$B$5*(F15*H15-1)/(mlb!H15-1),0)) -> 70.88888889 | K15: =IF(OR(F15="",I15=""),"",IF(((1-F15)*I15-1)>=settings!$B$10,settings!$B$2/settings!$B$5*((1-F15)*I15-1)/(I15-1),0)) -> 0 | L15: =IF(OR(G15="",M15=""),"",EXP(VLOOKUP(M15,settings!$F$3:$H$23,2)+VLOOKUP(M15,settings!$F$3:$H$23,3)*G15)/(1+EXP(VLOOKUP(M15,settings!$F$3:$H$23,2)+VLOOKUP(M15,settings!$F$3:$H$23,3)*G15))) -> 0.5243787794 | M15: 6.5 | N15: 2.02 | O15: 1.88 | P15: =IF(OR(M15="",L15="",N15="",G15=""),"",IF((L15*N15-1)>=settings!$B$12,settings!$B$2/settings!$B$6*(L15*N15-1)/(N15-1),0)) -> 58.08346518 | Q15: =IF(OR(M15="",L15="",O15="",G15=""),"",IF(((1-L15)*O15-1)>=settings!$B$13,settings!$B$2/settings!$B$6*((1-L15)*O15-1)/(O15-1),0)) -> 0
A16: 2014-05-25 | B16: Houston | C16: Seattle | D16: Dallas Keuchel | E16: Hisashi Iwakuma | F16: 0.439 | G16: 7.7 | H16: 2.5 | I16: 1.61 | J16: =IF(OR(F16="",H16=""),"",IF((F16*H16-1)>=settings!$B$9,settings!$B$2/settings!$B$5*(F16*H16-1)/(mlb!H16-1),0)) -> 65 | K16: =IF(OR(F16="",I16=""),"",IF(((1-F16)*I16-1)>=settings!$B$10,settings!$B$2/settings!$B$5*((1-F16)*I16-1)/(I16-1),0)) -> 0 | L16: =IF(OR(G16="",M16=""),"",EXP(VLOOKUP(M16,settings!$F$3:$H$23,2)+VLOOKUP(M16,settings!$F$3:$H$23,3)*G16)/(1+EXP(VLOOKUP(M16,settings!$F$3:$H$23,2)+VLOOKUP(M16,settings!$F$3:$H$23,3)*G16))) -> 0.585944496 | M16: 6.5 | N16: 1.93 | O16: 1.98 | P16: =IF(OR(M16="",L16="",N16="",G16=""),"",IF((L16*N16-1)>=settings!$B$12,settings!$B$2/settings!$B$6*(L16*N16-1)/(N16-1),0)) -> 140.723524 | Q16: =IF(OR(M16="",L16="",O16="",G16=""),"",IF(((1-L16)*O16-1)>=settings!$B$13,settings!$B$2/settings!$B$6*((1-L16)*O16-1)/(O16-1),0)) -> 0
A17: 2014-05-25 | B17: Arizona | C17: NY Mets | D17: Zeke Spruill | E17: Daisuke Matsuzaka | F17: 0.464 | G17: 8 | H17: 1.94 | I17: 1.98 | J17: =IF(OR(F17="",H17=""),"",IF((F17*H17-1)>=settings!$B$9,settings!$B$2/settings!$B$5*(F17*H17-1)/(mlb!H17-1),0)) -> 0 | K17: =IF(OR(F17="",I17=""),"",IF(((1-F17)*I17-1)>=settings!$B$10,settings!$B$2/settings!$B$5*((1-F17)*I17-1)/(I17-1),0)) -> 62.53061224 | L17: =IF(OR(G17="",M17=""),"",EXP(VLOOKUP(M17,settings!$F$3:$H$23,2)+VLOOKUP(M17,settings!$F$3:$H$23,3)*G17)/(1+EXP(VLOOKUP(M17,settings!$F$3:$H$23,2)+VLOOKUP(M17,settings!$F$3:$H$23,3)*G17))) -> 0.554222083 | M17: 7 | N17: 1.89 | O17: 1.97 | P17: =IF(OR(M17="",L17="",N17="",G17=""),"",IF((L17*N17-1)>=settings!$B$12,settings!$B$2/settings!$B$6*(L17*N17-1)/(N17-1),0)) -> 0 | Q17: =IF(OR(M17="",L17="",O17="",G17=""),"",IF(((1-L17)*O17-1)>=settings!$B$13,settings!$B$2/settings!$B$6*((1-L17)*O17-1)/(O17-1),0)) -> 0
A18: 2014-05-25 | B18: Colorado | C18: Atlanta | D18: Franklin Morales | E18: Julio Teheran | F18: 0.496 | G18: 7.2 | H18: 2.5 | I18: 1.61 | J18: =IF(OR(F18="",H18=""),"",IF((F18*H18-1)>=settings!$B$9,settings!$B$2/settings!$B$5*(F18*H18-1)/(mlb!H18-1),0)) -> 160 | K18: =IF(OR(F18="",I18=""),"",IF(((1-F18)*I18-1)>=settings!$B$10,settings!$B$2/settings!$B$5*((1-F18)*I18-1)/(I18-1),0)) -> 0 | L18: =IF(OR(G18="",M18=""),"",EXP(VLOOKUP(M18,settings!$F$3:$H$23,2)+VLOOKUP(M18,settings!$F$3:$H$23,3)*G18)/(1+EXP(VLOOKUP(M18,settings!$F$3:$H$23,2)+VLOOKUP(M18,settings!$F$3:$H$23,3)*G18))) -> 0.4260373316 | M18: 7.5 | N18: 1.99 | O18: 1.92 | P18: =IF(OR(M18="",L18="",N18="",G18=""),"",IF((L18*N18-1)>=settings!$B$12,settings!$B$2/settings!$B$6*(L18*N18-1)/(N18-1),0)) -> 0 | Q18: =IF(OR(M18="",L18="",O18="",G18=""),"",IF(((1-L18)*O18-1)>=settings!$B$13,settings!$B$2/settings!$B$6*((1-L18)*O18-1)/(O18-1),0)) -> 110.8786123
A19: 2014-05-25 | B19: St Louis | C19: Cincinnati | D19: Adam Wainwright | E19: Mike Leake | F19: 0.501 | G19: 7.3 | H19: 1.67 | I19: 2.38 | J19: =IF(OR(F19="",H19=""),"",IF((F19*H19-1)>=settings!$B$9,settings!$B$2/settings!$B$5*(F19*H19-1)/(mlb!H19-1),0)) -> 0 | K19: =IF(OR(F19="",I19=""),"",IF(((1-F19)*I19-1)>=settings!$B$10,settings!$B$2/settings!$B$5*((1-F19)*I19-1)/(I19-1),0)) -> 135.9565217 | L19: =IF(OR(G19="",M19=""),"",EXP(VLOOKUP(M19,settings!$F$3:$H$23,2)+VLOOKUP(M19,settings!$F$3:$H$23,3)*G19)/(1+EXP(VLOOKUP(M19,settings!$F$3:$H$23,2)+VLOOKUP(M19,settings!$F$3:$H$23,3)*G19))) -> 0.5553741205 | M19: 6.5 | N19: 1.79 | O19: 2.15 | P19: =IF(OR(M19="",L19="",N19="",G19=""),"",IF((L19*N19-1)>=settings!$B$12,settings!$B$2/settings!$B$6*(L19*N19-1)/(N19-1),0)) -> 0 | Q19: =IF(OR(M19="",L19="",O19="",G19=""),"",IF(((1-L19)*O19-1)>=settings!$B$13,settings!$B$2/settings!$B$6*((1-L19)*O19-1)/(O19-1),0)) -> 0
J20: =IF(OR(F20="",H20=""),"",IF((F20*H20-1)>=settings!$B$9,settings!$B$2/settings!$B$5*(F20*H20-1)/(mlb!H20-1),0)) ->  | K20: =IF(OR(F20="",I20=""),"",IF(((1-F20)*I20-1)>=settings!$B$10,settings!$B$2/settings!$B$5*((1-F20)*I20-1)/(I20-1),0)) ->  | L20: =IF(OR(G20="",M20=""),"",EXP(VLOOKUP(M20,settings!$F$3:$H$23,2)+VLOOKUP(M20,settings!$F$3:$H$23,3)*G20)/(1+EXP(VLOOKUP(M20,settings!$F$3:$H$23,2)+VLOOKUP(M20,settings!$F$3:$H$23,3)*G20))) ->  | P20: =IF(OR(M20="",L20="",N20="",G20=""),"",IF((L20*N20-1)>=settings!$B$12,settings!$B$2/settings!$B$6*(L20*N20-1)/(N20-1),0)) ->  | Q20: =IF(OR(M20="",L20="",O20="",G20=""),"",IF(((1-L20)*O20-1)>=settings!$B$13,settings!$B$2/settings!$B$6*((1-L20)*O20-1)/(O20-1),0)) -> 
J21: =IF(OR(F21="",H21=""),"",IF((F21*H21-1)>=settings!$B$9,settings!$B$2/settings!$B$5*(F21*H21-1)/(mlb!H21-1),0)) ->  | K21: =IF(OR(F21="",I21=""),"",IF(((1-F21)*I21-1)>=settings!$B$10,settings!$B$2/settings!$B$5*((1-F21)*I21-1)/(I21-1),0)) ->  | L21: =IF(OR(G21="",M21=""),"",EXP(VLOOKUP(M21,settings!$F$3:$H$23,2)+VLOOKUP(M21,settings!$F$3:$H$23,3)*G21)/(1+EXP(VLOOKUP(M21,settings!$F$3:$H$23,2)+VLOOKUP(M21,settings!$F$3:$H$23,3)*G21))) ->  | P21: =IF(OR(M21="",L21="",N21="",G21=""),"",IF((L21*N21-1)>=settings!$B$12,settings!$B$2/settings!$B$6*(L21*N21-1)/(N21-1),0)) ->  | Q21: =IF(OR(M21="",L21="",O21="",G21=""),"",IF(((1-L21)*O21-1)>=settings!$B$13,settings!$B$2/settings!$B$6*((1-L21)*O21-1)/(O21-1),0)) -> 
J22: =IF(OR(F22="",H22=""),"",IF((F22*H22-1)>=settings!$B$9,settings!$B$2/settings!$B$5*(F22*H22-1)/(mlb!H22-1),0)) ->  | K22: =IF(OR(F22="",I22=""),"",IF(((1-F22)*I22-1)>=settings!$B$10,settings!$B$2/settings!$B$5*((1-F22)*I22-1)/(I22-1),0)) ->  | L22: =IF(OR(G22="",M22=""),"",EXP(VLOOKUP(M22,settings!$F$3:$H$23,2)+VLOOKUP(M22,settings!$F$3:$H$23,3)*G22)/(1+EXP(VLOOKUP(M22,settings!$F$3:$H$23,2)+VLOOKUP(M22,settings!$F$3:$H$23,3)*G22))) ->  | P22: =IF(OR(M22="",L22="",N22="",G22=""),"",IF((L22*N22-1)>=settings!$B$12,settings!$B$2/settings!$B$6*(L22*N22-1)/(N22-1),0)) ->  | Q22: =IF(OR(M22="",L22="",O22="",G22=""),"",IF(((1-L22)*O22-1)>=settings!$B$13,settings!$B$2/settings!$B$6*((1-L22)*O22-1)/(O22-1),0)) -> 
J23: =IF(OR(F23="",H23=""),"",IF((F23*H23-1)>=settings!$B$9,settings!$B$2/settings!$B$5*(F23*H23-1)/(mlb!H23-1),0)) ->  | K23: =IF(OR(F23="",I23=""),"",IF(((1-F23)*I23-1)>=settings!$B$10,settings!$B$2/settings!$B$5*((1-F23)*I23-1)/(I23-1),0)) ->  | L23: =IF(OR(G23="",M23=""),"",EXP(VLOOKUP(M23,settings!$F$3:$H$23,2)+VLOOKUP(M23,settings!$F$3:$H$23,3)*G23)/(1+EXP(VLOOKUP(M23,settings!$F$3:$H$23,2)+VLOOKUP(M23,settings!$F$3:$H$23,3)*G23))) ->  | P23: =IF(OR(M23="",L23="",N23="",G23=""),"",IF((L23*N23-1)>=settings!$B$12,settings!$B$2/settings!$B$6*(L23*N23-1)/(N23-1),0)) ->  | Q23: =IF(OR(M23="",L23="",O23="",G23=""),"",IF(((1-L23)*O23-1)>=settings!$B$13,settings!$B$2/settings!$B$6*((1-L23)*O23-1)/(O23-1),0)) -> 
J24: =IF(OR(F24="",H24=""),"",IF((F24*H24-1)>=settings!$B$9,settings!$B$2/settings!$B$5*(F24*H24-1)/(mlb!H24-1),0)) ->  | K24: =IF(OR(F24="",I24=""),"",IF(((1-F24)*I24-1)>=settings!$B$10,settings!$B$2/settings!$B$5*((1-F24)*I24-1)/(I24-1),0)) ->  | L24: =IF(OR(G24="",M24=""),"",EXP(VLOOKUP(M24,settings!$F$3:$H$23,2)+VLOOKUP(M24,settings!$F$3:$H$23,3)*G24)/(1+EXP(VLOOKUP(M24,settings!$F$3:$H$23,2)+VLOOKUP(M24,settings!$F$3:$H$23,3)*G24))) ->  | P24: =IF(OR(M24="",L24="",N24="",G24=""),"",IF((L24*N24-1)>=settings!$B$12,settings!$B$2/settings!$B$6*(L24*N24-1)/(N24-1),0)) ->  | Q24: =IF(OR(M24="",L24="",O24="",G24=""),"",IF(((1-L24)*O24-1)>=settings!$B$13,settings!$B$2/settings!$B$6*((1-L24)*O24-1)/(O24-1),0)) -> 
J25: =IF(OR(F25="",H25=""),"",IF((F25*H25-1)>=settings!$B$9,settings!$B$2/settings!$B$5*(F25*H25-1)/(mlb!H25-1),0)) ->  | K25: =IF(OR(F25="",I25=""),"",IF(((1-F25)*I25-1)>=settings!$B$10,settings!$B$2/settings!$B$5*((1-F25)*I25-1)/(I25-1),0)) ->  | L25: =IF(OR(G25="",M25=""),"",EXP(VLOOKUP(M25,settings!$F$3:$H$23,2)+VLOOKUP(M25,settings!$F$3:$H$23,3)*G25)/(1+EXP(VLOOKUP(M25,settings!$F$3:$H$23,2)+VLOOKUP(M25,settings!$F$3:$H$23,3)*G25))) ->  | P25: =IF(OR(M25="",L25="",N25="",G25=""),"",IF((L25*N25-1)>=settings!$B$12,settings!$B$2/settings!$B$6*(L25*N25-1)/(N25-1),0)) ->  | Q25: =IF(OR(M25="",L25="",O25="",G25=""),"",IF(((1-L25)*O25-1)>=settings!$B$13,settings!$B$2/settings!$B$6*((1-L25)*O25-1)/(O25-1),0)) -> 
J26: =IF(OR(F26="",H26=""),"",IF((F26*H26-1)>=settings!$B$9,settings!$B$2/settings!$B$5*(F26*H26-1)/(mlb!H26-1),0)) ->  | K26: =IF(OR(F26="",I26=""),"",IF(((1-F26)*I26-1)>=settings!$B$10,settings!$B$2/settings!$B$5*((1-F26)*I26-1)/(I26-1),0)) ->  | L26: =IF(OR(G26="",M26=""),"",EXP(VLOOKUP(M26,settings!$F$3:$H$23,2)+VLOOKUP(M26,settings!$F$3:$H$23,3)*G26)/(1+EXP(VLOOKUP(M26,settings!$F$3:$H$23,2)+VLOOKUP(M26,settings!$F$3:$H$23,3)*G26))) ->  | P26: =IF(OR(M26="",L26="",N26="",G26=""),"",IF((L26*N26-1)>=settings!$B$12,settings!$B$2/settings!$B$6*(L26*N26-1)/(N26-1),0)) ->  | Q26: =IF(OR(M26="",L26="",O26="",G26=""),"",IF(((1-L26)*O26-1)>=settings!$B$13,settings!$B$2/settings!$B$6*((1-L26)*O26-1)/(O26-1),0)) -> 
J27: =IF(OR(F27="",H27=""),"",IF((F27*H27-1)>=settings!$B$9,settings!$B$2/settings!$B$5*(F27*H27-1)/(mlb!H27-1),0)) ->  | K27: =IF(OR(F27="",I27=""),"",IF(((1-F27)*I27-1)>=settings!$B$10,settings!$B$2/settings!$B$5*((1-F27)*I27-1)/(I27-1),0)) ->  | L27: =IF(OR(G27="",M27=""),"",EXP(VLOOKUP(M27,settings!$F$3:$H$23,2)+VLOOKUP(M27,settings!$F$3:$H$23,3)*G27)/(1+EXP(VLOOKUP(M27,settings!$F$3:$H$23,2)+VLOOKUP(M27,settings!$F$3:$H$23,3)*G27))) ->  | P27: =IF(OR(M27="",L27="",N27="",G27=""),"",IF((L27*N27-1)>=settings!$B$12,settings!$B$2/settings!$B$6*(L27*N27-1)/(N27-1),0)) ->  | Q27: =IF(OR(M27="",L27="",O27="",G27=""),"",IF(((1-L27)*O27-1)>=settings!$B$13,settings!$B$2/settings!$B$6*((1-L27)*O27-1)/(O27-1),0)) -> 
J28: =IF(OR(F28="",H28=""),"",IF((F28*H28-1)>=settings!$B$9,settings!$B$2/settings!$B$5*(F28*H28-1)/(mlb!H28-1),0)) ->  | K28: =IF(OR(F28="",I28=""),"",IF(((1-F28)*I28-1)>=settings!$B$10,settings!$B$2/settings!$B$5*((1-F28)*I28-1)/(I28-1),0)) ->  | L28: =IF(OR(G28="",M28=""),"",EXP(VLOOKUP(M28,settings!$F$3:$H$23,2)+VLOOKUP(M28,settings!$F$3:$H$23,3)*G28)/(1+EXP(VLOOKUP(M28,settings!$F$3:$H$23,2)+VLOOKUP(M28,settings!$F$3:$H$23,3)*G28))) ->  | P28: =IF(OR(M28="",L28="",N28="",G28=""),"",IF((L28*N28-1)>=settings!$B$12,settings!$B$2/settings!$B$6*(L28*N28-1)/(N28-1),0)) ->  | Q28: =IF(OR(M28="",L28="",O28="",G28=""),"",IF(((1-L28)*O28-1)>=settings!$B$13,settings!$B$2/settings!$B$6*((1-L28)*O28-1)/(O28-1),0)) -> 
J29: =IF(OR(F29="",H29=""),"",IF((F29*H29-1)>=settings!$B$9,settings!$B$2/settings!$B$5*(F29*H29-1)/(mlb!H29-1),0)) ->  | K29: =IF(OR(F29="",I29=""),"",IF(((1-F29)*I29-1)>=settings!$B$10,settings!$B$2/settings!$B$5*((1-F29)*I29-1)/(I29-1),0)) ->  | L29: =IF(OR(G29="",M29=""),"",EXP(VLOOKUP(M29,settings!$F$3:$H$23,2)+VLOOKUP(M29,settings!$F$3:$H$23,3)*G29)/(1+EXP(VLOOKUP(M29,settings!$F$3:$H$23,2)+VLOOKUP(M29,settings!$F$3:$H$23,3)*G29))) ->  | P29: =IF(OR(M29="",L29="",N29="",G29=""),"",IF((L29*N29-1)>=settings!$B$12,settings!$B$2/settings!$B$6*(L29*N29-1)/(N29-1),0)) ->  | Q29: =IF(OR(M29="",L29="",O29="",G29=""),"",IF(((1-L29)*O29-1)>=settings!$B$13,settings!$B$2/settings!$B$6*((1-L29)*O29-1)/(O29-1),0)) -> 
J30: =IF(OR(F30="",H30=""),"",IF((F30*H30-1)>=settings!$B$9,settings!$B$2/settings!$B$5*(F30*H30-1)/(mlb!H30-1),0)) ->  | K30: =IF(OR(F30="",I30=""),"",IF(((1-F30)*I30-1)>=settings!$B$10,settings!$B$2/settings!$B$5*((1-F30)*I30-1)/(I30-1),0)) ->  | L30: =IF(OR(G30="",M30=""),"",EXP(VLOOKUP(M30,settings!$F$3:$H$23,2)+VLOOKUP(M30,settings!$F$3:$H$23,3)*G30)/(1+EXP(VLOOKUP(M30,settings!$F$3:$H$23,2)+VLOOKUP(M30,settings!$F$3:$H$23,3)*G30))) ->  | P30: =IF(OR(M30="",L30="",N30="",G30=""),"",IF((L30*N30-1)>=settings!$B$12,settings!$B$2/settings!$B$6*(L30*N30-1)/(N30-1),0)) ->  | Q30: =IF(OR(M30="",L30="",O30="",G30=""),"",IF(((1-L30)*O30-1)>=settings!$B$13,settings!$B$2/settings!$B$6*((1-L30)*O30-1)/(O30-1),0)) -> 
J31: =IF(OR(F31="",H31=""),"",IF((F31*H31-1)>=settings!$B$9,settings!$B$2/settings!$B$5*(F31*H31-1)/(mlb!H31-1),0)) ->  | K31: =IF(OR(F31="",I31=""),"",IF(((1-F31)*I31-1)>=settings!$B$10,settings!$B$2/settings!$B$5*((1-F31)*I31-1)/(I31-1),0)) ->  | L31: =IF(OR(G31="",M31=""),"",EXP(VLOOKUP(M31,settings!$F$3:$H$23,2)+VLOOKUP(M31,settings!$F$3:$H$23,3)*G31)/(1+EXP(VLOOKUP(M31,settings!$F$3:$H$23,2)+VLOOKUP(M31,settings!$F$3:$H$23,3)*G31))) ->  | P31: =IF(OR(M31="",L31="",N31="",G31=""),"",IF((L31*N31-1)>=settings!$B$12,settings!$B$2/settings!$B$6*(L31*N31-1)/(N31-1),0)) ->  | Q31: =IF(OR(M31="",L31="",O31="",G31=""),"",IF(((1-L31)*O31-1)>=settings!$B$13,settings!$B$2/settings!$B$6*((1-L31)*O31-1)/(O31-1),0)) -> 
J32: =IF(OR(F32="",H32=""),"",IF((F32*H32-1)>=settings!$B$9,settings!$B$2/settings!$B$5*(F32*H32-1)/(mlb!H32-1),0)) ->  | K32: =IF(OR(F32="",I32=""),"",IF(((1-F32)*I32-1)>=settings!$B$10,settings!$B$2/settings!$B$5*((1-F32)*I32-1)/(I32-1),0)) ->  | L32: =IF(OR(G32="",M32=""),"",EXP(VLOOKUP(M32,settings!$F$3:$H$23,2)+VLOOKUP(M32,settings!$F$3:$H$23,3)*G32)/(1+EXP(VLOOKUP(M32,settings!$F$3:$H$23,2)+VLOOKUP(M32,settings!$F$3:$H$23,3)*G32))) ->  | P32: =IF(OR(M32="",L32="",N32="",G32=""),"",IF((L32*N32-1)>=settings!$B$12,settings!$B$2/settings!$B$6*(L32*N32-1)/(N32-1),0)) ->  | Q32: =IF(OR(M32="",L32="",O32="",G32=""),"",IF(((1-L32)*O32-1)>=settings!$B$13,settings!$B$2/settings!$B$6*((1-L32)*O32-1)/(O32-1),0)) -> 
J33: =IF(OR(F33="",H33=""),"",IF((F33*H33-1)>=settings!$B$9,settings!$B$2/settings!$B$5*(F33*H33-1)/(mlb!H33-1),0)) ->  | K33: =IF(OR(F33="",I33=""),"",IF(((1-F33)*I33-1)>=settings!$B$10,settings!$B$2/settings!$B$5*((1-F33)*I33-1)/(I33-1),0)) ->  | L33: =IF(OR(G33="",M33=""),"",EXP(VLOOKUP(M33,settings!$F$3:$H$23,2)+VLOOKUP(M33,settings!$F$3:$H$23,3)*G33)/(1+EXP(VLOOKUP(M33,settings!$F$3:$H$23,2)+VLOOKUP(M33,settings!$F$3:$H$23,3)*G33))) ->  | P33: =IF(OR(M33="",L33="",N33="",G33=""),"",IF((L33*N33-1)>=settings!$B$12,settings!$B$2/settings!$B$6*(L33*N33-1)/(N33-1),0)) ->  | Q33: =IF(OR(M33="",L33="",O33="",G33=""),"",IF(((1-L33)*O33-1)>=settings!$B$13,settings!$B$2/settings!$B$6*((1-L33)*O33-1)/(O33-1),0)) -> 
J34: =IF(OR(F34="",H34=""),"",IF((F34*H34-1)>=settings!$B$9,settings!$B$2/settings!$B$5*(F34*H34-1)/(mlb!H34-1),0)) ->  | K34: =IF(OR(F34="",I34=""),"",IF(((1-F34)*I34-1)>=settings!$B$10,settings!$B$2/settings!$B$5*((1-F34)*I34-1)/(I34-1),0)) ->  | L34: =IF(OR(G34="",M34=""),"",EXP(VLOOKUP(M34,settings!$F$3:$H$23,2)+VLOOKUP(M34,settings!$F$3:$H$23,3)*G34)/(1+EXP(VLOOKUP(M34,settings!$F$3:$H$23,2)+VLOOKUP(M34,settings!$F$3:$H$23,3)*G34))) ->  | P34: =IF(OR(M34="",L34="",N34="",G34=""),"",IF((L34*N34-1)>=settings!$B$12,settings!$B$2/settings!$B$6*(L34*N34-1)/(N34-1),0)) ->  | Q34: =IF(OR(M34="",L34="",O34="",G34=""),"",IF(((1-L34)*O34-1)>=settings!$B$13,settings!$B$2/settings!$B$6*((1-L34)*O34-1)/(O34-1),0)) -> 
J35: =IF(OR(F35="",H35=""),"",IF((F35*H35-1)>=settings!$B$9,settings!$B$2/settings!$B$5*(F35*H35-1)/(mlb!H35-1),0)) ->  | K35: =IF(OR(F35="",I35=""),"",IF(((1-F35)*I35-1)>=settings!$B$10,settings!$B$2/settings!$B$5*((1-F35)*I35-1)/(I35-1),0)) ->  | L35: =IF(OR(G35="",M35=""),"",EXP(VLOOKUP(M35,settings!$F$3:$H$23,2)+VLOOKUP(M35,settings!$F$3:$H$23,3)*G35)/(1+EXP(VLOOKUP(M35,settings!$F$3:$H$23,2)+VLOOKUP(M35,settings!$F$3:$H$23,3)*G35))) ->  | P35: =IF(OR(M35="",L35="",N35="",G35=""),"",IF((L35*N35-1)>=settings!$B$12,settings!$B$2/settings!$B$6*(L35*N35-1)/(N35-1),0)) ->  | Q35: =IF(OR(M35="",L35="",O35="",G35=""),"",IF(((1-L35)*O35-1)>=settings!$B$13,settings!$B$2/settings!$B$6*((1-L35)*O35-1)/(O35-1),0)) -> 
J36: =IF(OR(F36="",H36=""),"",IF((F36*H36-1)>=settings!$B$9,settings!$B$2/settings!$B$5*(F36*H36-1)/(mlb!H36-1),0)) ->  | K36: =IF(OR(F36="",I36=""),"",IF(((1-F36)*I36-1)>=settings!$B$10,settings!$B$2/settings!$B$5*((1-F36)*I36-1)/(I36-1),0)) ->  | L36: =IF(OR(G36="",M36=""),"",EXP(VLOOKUP(M36,settings!$F$3:$H$23,2)+VLOOKUP(M36,settings!$F$3:$H$23,3)*G36)/(1+EXP(VLOOKUP(M36,settings!$F$3:$H$23,2)+VLOOKUP(M36,settings!$F$3:$H$23,3)*G36))) ->  | P36: =IF(OR(M36="",L36="",N36="",G36=""),"",IF((L36*N36-1)>=settings!$B$12,settings!$B$2/settings!$B$6*(L36*N36-1)/(N36-1),0)) ->  | Q36: =IF(OR(M36="",L36="",O36="",G36=""),"",IF(((1-L36)*O36-1)>=settings!$B$13,settings!$B$2/settings!$B$6*((1-L36)*O36-1)/(O36-1),0)) -> 
J37: =IF(OR(F37="",H37=""),"",IF((F37*H37-1)>=settings!$B$9,settings!$B$2/settings!$B$5*(F37*H37-1)/(mlb!H37-1),0)) ->  | K37: =IF(OR(F37="",I37=""),"",IF(((1-F37)*I37-1)>=settings!$B$10,settings!$B$2/settings!$B$5*((1-F37)*I37-1)/(I37-1),0)) ->  | L37: =IF(OR(G37="",M37=""),"",EXP(VLOOKUP(M37,settings!$F$3:$H$23,2)+VLOOKUP(M37,settings!$F$3:$H$23,3)*G37)/(1+EXP(VLOOKUP(M37,settings!$F$3:$H$23,2)+VLOOKUP(M37,settings!$F$3:$H$23,3)*G37))) ->  | P37: =IF(OR(M37="",L37="",N37="",G37=""),"",IF((L37*N37-1)>=settings!$B$12,settings!$B$2/settings!$B$6*(L37*N37-1)/(N37-1),0)) ->  | Q37: =IF(OR(M37="",L37="",O37="",G37=""),"",IF(((1-L37)*O37-1)>=settings!$B$13,settings!$B$2/settings!$B$6*((1-L37)*O37-1)/(O37-1),0)) -> 
J38: =IF(OR(F38="",H38=""),"",IF((F38*H38-1)>=settings!$B$9,settings!$B$2/settings!$B$5*(F38*H38-1)/(mlb!H38-1),0)) ->  | K38: =IF(OR(F38="",I38=""),"",IF(((1-F38)*I38-1)>=settings!$B$10,settings!$B$2/settings!$B$5*((1-F38)*I38-1)/(I38-1),0)) ->  | L38: =IF(OR(G38="",M38=""),"",EXP(VLOOKUP(M38,settings!$F$3:$H$23,2)+VLOOKUP(M38,settings!$F$3:$H$23,3)*G38)/(1+EXP(VLOOKUP(M38,settings!$F$3:$H$23,2)+VLOOKUP(M38,settings!$F$3:$H$23,3)*G38))) ->  | P38: =IF(OR(M38="",L38="",N38="",G38=""),"",IF((L38*N38-1)>=settings!$B$12,settings!$B$2/settings!$B$6*(L38*N38-1)/(N38-1),0)) ->  | Q38: =IF(OR(M38="",L38="",O38="",G38=""),"",IF(((1-L38)*O38-1)>=settings!$B$13,settings!$B$2/settings!$B$6*((1-L38)*O38-1)/(O38-1),0)) -> 
J39: =IF(OR(F39="",H39=""),"",IF((F39*H39-1)>=settings!$B$9,settings!$B$2/settings!$B$5*(F39*H39-1)/(mlb!H39-1),0)) ->  | K39: =IF(OR(F39="",I39=""),"",IF(((1-F39)*I39-1)>=settings!$B$10,settings!$B$2/settings!$B$5*((1-F39)*I39-1)/(I39-1),0)) ->  | L39: =IF(OR(G39="",M39=""),"",EXP(VLOOKUP(M39,settings!$F$3:$H$23,2)+VLOOKUP(M39,settings!$F$3:$H$23,3)*G39)/(1+EXP(VLOOKUP(M39,settings!$F$3:$H$23,2)+VLOOKUP(M39,settings!$F$3:$H$23,3)*G39))) ->  | P39: =IF(OR(M39="",L39="",N39="",G39=""),"",IF((L39*N39-1)>=settings!$B$12,settings!$B$2/settings!$B$6*(L39*N39-1)/(N39-1),0)) ->  | Q39: =IF(OR(M39="",L39="",O39="",G39=""),"",IF(((1-L39)*O39-1)>=settings!$B$13,settings!$B$2/settings!$B$6*((1-L39)*O39-1)/(O39-1),0)) -> 
J40: =IF(OR(F40="",H40=""),"",IF((F40*H40-1)>=settings!$B$9,settings!$B$2/settings!$B$5*(F40*H40-1)/(mlb!H40-1),0)) ->  | K40: =IF(OR(F40="",I40=""),"",IF(((1-F40)*I40-1)>=settings!$B$10,settings!$B$2/settings!$B$5*((1-F40)*I40-1)/(I40-1),0)) ->  | L40: =IF(OR(G40="",M40=""),"",EXP(VLOOKUP(M40,settings!$F$3:$H$23,2)+VLOOKUP(M40,settings!$F$3:$H$23,3)*G40)/(1+EXP(VLOOKUP(M40,settings!$F$3:$H$23,2)+VLOOKUP(M40,settings!$F$3:$H$23,3)*G40))) ->  | P40: =IF(OR(M40="",L40="",N40="",G40=""),"",IF((L40*N40-1)>=settings!$B$12,settings!$B$2/settings!$B$6*(L40*N40-1)/(N40-1),0)) ->  | Q40: =IF(OR(M40="",L40="",O40="",G40=""),"",IF(((1-L40)*O40-1)>=settings!$B$13,settings!$B$2/settings!$B$6*((1-L40)*O40-1)/(O40-1),0)) -> 
